{"text_format":"1","workbook":"xlsx","n_sheets":9,"sheets":["Dernier mois - Québec","Dernier mois - Régions","Dernier trimestre - Québec","Dernier trimestre - Régions","Années Cumul -  Québec","Années Cumul - Régions","Régions administratives","Codes","Mois"],"not_rendered":{"charts":0,"images":4,"macros":1,"external_links":0,"defined_names":36,"comments":0,"pivot_tables":32},"unopened":[],"bounds":{"document_bytes":16777216,"sheet_cells":100000,"rows_first":2000,"rows_last":500,"rows_between":2000,"halvings":0,"cell_chars":16384,"cell_head_chars":4096},"cells_cut":0,"cells_raw":0,"read":"whole","date_system":"1900"}

{"sheet":"Dernier mois - Québec","index":0,"n_rows":57,"n_cols":5,"rows_kept":57,"cut":false,"hidden":false,"merged":[[0,0,0,9],[32,0,32,6],[42,0,42,6],[45,0,45,6],[3,0,3,6],[5,0,5,6],[17,0,17,6],[20,0,20,6],[30,0,30,6]]}
["Comparaison du dernier mois - Pour l'ensemble du Québec"]
[]
[]
["Volume des ventes par plage de prix"]
[]
["Nombre de ventes par plage de prix"]
["Filtre 2 derniers mois","Oui"]
[]
[null,"Mois"]
[null,"2024-03",null,"2025-03"]
["Plage de prix","Nbre","Variation % (▲ ou ▼)","Nbre","Variation % (▲ ou ▼)"]
[" Moins de 250 000$",3352,null,3129,-6.6527446300715984E-2]
[" De 250 000$ à 500 000$",3699,null,3953,6.8667207353338741E-2]
[" Plus de 500 000$",2552,null,3590,0.40673981191222569]
["Total",9603,null,10672,0.11131937936061648]
[]
[]
["Volume des transferts de propriété"]
["(Vente, cession d'un immeuble, déclaration de transmission, donation, etc.)"]
[]
["Nombre de transferts de propriété"]
[null,"Filtre 2 derniers mois","Oui"]
[]
[null,"Mois"]
[null,"2024-03",null,"2025-03"]
[null,"Nbre","Variation % (▲ ou ▼)","Nbre","Variation % (▲ ou ▼)"]
["Transferts de propriété",13437,null,14903,0.10910173401800997]
[]
[]
[]
["Volume des hypothèques"]
[]
["Nombre d'hypothèques"]
[null,"Filtre 2 derniers mois","Oui"]
[]
[null,"Mois"]
[null,"2024-03",null,"2025-03"]
[null,"Nbre","Variation % (▲ ou ▼)","Nbre","Variation % (▲ ou ▼)"]
["Hypothèques",14076,null,18309,0.30072463768115942]
[]
[]
[]
["Indice de difficultés financières"]
["(Avis de vente impôt foncier, faillite, hyp. légale construction, préavis d'exercice, saisie)"]
[]
["Nombre d'actes de difficultés financières"]
["Filtre 2 derniers mois","Oui"]
[]
[null,"Mois"]
[null,"2024-03",null,"2025-03"]
["Indice de difficultés \nfinancières","Nbre","Variation % (▲ ou ▼)","Nbre","Variation % (▲ ou ▼)"]
["Avis de vente impôt foncier",16,null,21,0.3125]
["Faillite",18,null,26,0.44444444444444442]
["Hypothèque construction",142,null,173,0.21830985915492956]
["Préavis d'exercice",481,null,477,-8.3160083160083165E-3]
["Saisie",27,null,27,0]
["Total",684,null,724,5.8479532163742687E-2]

{"sheet":"Dernier mois - Régions","index":1,"n_rows":114,"n_cols":5,"rows_kept":114,"cut":false,"hidden":false,"merged":[[3,0,3,6],[5,0,5,6],[31,0,31,6],[60,0,60,5],[0,0,0,9],[88,0,88,7],[89,0,89,7],[90,0,90,3],[91,0,91,7],[32,0,32,6],[34,0,34,6],[62,0,62,5]]}
["Comparaison du dernier mois - Régions administratives"]
[]
[]
["Volume des ventes par plage de prix"]
[]
["Nombre de ventes par plage de prix et par région administrative"]
["Filtre 2 derniers mois","Oui"]
[]
[null,"Mois"]
[null,"2024-03",null,"2025-03"]
["Régions administratives","Nbre","Variation %  (▲ ou ▼)","Nbre","Variation %  (▲ ou ▼)"]
["01 - Bas-Saint-Laurent",246,null,288,0.17073170731707318]
["02 - Saguenay-Lac-Saint-Jean",364,null,395,8.5164835164835168E-2]
["03 - Capitale-Nationale",872,null,925,6.0779816513761471E-2]
["04 - Mauricie",382,null,381,-2.617801047120419E-3]
["05 - Estrie",482,null,511,6.0165975103734441E-2]
["06 - Montréal",1588,null,1697,6.8639798488664985E-2]
["07 - Outaouais",499,null,565,0.13226452905811623]
["08 - Abitibi-Témiscamingue",175,null,169,-3.4285714285714287E-2]
["09 - Côte-Nord",102,null,111,8.8235294117647065E-2]
["11 - Gaspésie-Îles-de-la-Madeleine",125,null,142,0.13600000000000001]
["12 - Chaudière-Appalaches",625,null,677,8.3199999999999996E-2]
["13 - Laval",369,null,361,-2.1680216802168022E-2]
["14 - Lanaudière",680,null,762,0.12058823529411765]
["15 - Laurentides",1086,null,1264,0.16390423572744015]
["16 - Montérégie",1728,null,2130,0.2326388888888889]
["17 - Centre-du-Québec",280,null,294,0.05]
["Total",9603,null,10672,0.11131937936061648]
[]
[]
[]
["Volume des transferts de propriété"]
["(Vente, cession d'un immeuble, déclaration de transmission, donation, etc.)"]
[]
["Nombre de transferts de propriété par région administrative"]
["Filtre 2 derniers mois","Oui"]
[]
[null,"Mois"]
[null,"2024-03",null,"2025-03"]
["Régions administratives","Nbre","Variation % \n(▲ ou ▼)","Nbre","Variation % \n(▲ ou ▼)"]
["01 - Bas-Saint-Laurent",370,null,424,0.14594594594594595]
["02 - Saguenay-Lac-Saint-Jean",552,null,568,2.8985507246376812E-2]
["03 - Capitale-Nationale",1199,null,1314,9.5913261050875734E-2]
["04 - Mauricie",552,null,540,-2.1739130434782608E-2]
["05 - Estrie",643,null,656,2.0217729393468119E-2]
["06 - Montréal",2126,null,2326,9.4073377234242708E-2]
["07 - Outaouais",776,null,866,0.11597938144329897]
["08 - Abitibi-Témiscamingue",276,null,268,-2.8985507246376812E-2]
["09 - Côte-Nord",158,null,177,0.12025316455696203]
["11 - Gaspésie-Îles-de-la-Madeleine",221,null,250,0.13122171945701358]
["12 - Chaudière-Appalaches",849,null,946,0.11425206124852769]
["13 - Laval",522,null,532,1.9157088122605363E-2]
["14 - Lanaudière",973,null,1067,9.6608427543679348E-2]
["15 - Laurentides",1487,null,1679,0.12911903160726296]
["16 - Montérégie",2343,null,2870,0.22492530943235167]
["17 - Centre-du-Québec",390,null,420,7.6923076923076927E-2]
["Total",13437,null,14903,0.10910173401800997]
[]
[]
[]
["Volume des hypothèques"]
[]
["Nombre d'hypothèques par région administrative"]
["Filtre 2 derniers mois","Oui"]
[]
[null,"Mois"]
[null,"2024-03",null,"2025-03"]
["Régions administratives","Nbre","Variation % \n(▲ ou ▼)","Nbre","Variation % \n(▲ ou ▼)"]
["01 - Bas-Saint-Laurent",227,null,365,0.60792951541850215]
["02 - Saguenay-Lac-Saint-Jean",504,null,667,0.32341269841269843]
["03 - Capitale-Nationale",1256,null,1607,0.27945859872611467]
["04 - Mauricie",537,null,594,0.10614525139664804]
["05 - Estrie",627,null,743,0.1850079744816587]
["06 - Montréal",2337,null,3064,0.3110825845100556]
["07 - Outaouais",838,null,1076,0.28400954653937949]
["08 - Abitibi-Témiscamingue",201,null,238,0.18407960199004975]
["09 - Côte-Nord",113,null,141,0.24778761061946902]
["11 - Gaspésie-Îles-de-la-Madeleine",103,null,144,0.39805825242718446]
["12 - Chaudière-Appalaches",729,null,938,0.28669410150891633]
["13 - Laval",649,null,870,0.34052388289676427]
["14 - Lanaudière",1011,null,1341,0.32640949554896143]
["15 - Laurentides",1594,null,2060,0.29234629861982436]
["16 - Montérégie",2945,null,3924,0.33242784380305601]
["17 - Centre-du-Québec",405,null,537,0.32592592592592595]
["Total",14076,null,18309,0.30072463768115942]
[]
[]
[]
["Indice de difficultés financières"]
["(Avis de vente impôt foncier, faillite, hyp. légale construction, préavis d'exercice, saisie)"]
[]
["Nombre d'actes de difficultés financières par région administrative"]
["Filtre 2 derniers mois","Oui"]
[]
[null,"Mois"]
[null,"2024-03",null,"2025-03"]
["Régions administratives","Nbre","Variation % \n(▲ ou ▼)","Nbre","Variation % \n(▲ ou ▼)"]
["01 - Bas-Saint-Laurent",20,null,17,-0.15]
["02 - Saguenay-Lac-Saint-Jean",27,null,25,-7.407407407407407E-2]
["03 - Capitale-Nationale",57,null,43,-0.24561403508771928]
["04 - Mauricie",27,null,24,-0.1111111111111111]
["05 - Estrie",29,null,42,0.44827586206896552]
["06 - Montréal",139,null,134,-3.5971223021582732E-2]
["07 - Outaouais",28,null,39,0.39285714285714285]
["08 - Abitibi-Témiscamingue",14,null,15,7.1428571428571425E-2]
["09 - Côte-Nord",4,null,6,0.5]
["11 - Gaspésie-Îles-de-la-Madeleine",14,null,13,-7.1428571428571425E-2]
["12 - Chaudière-Appalaches",41,null,45,9.7560975609756101E-2]
["13 - Laval",21,null,22,4.7619047619047616E-2]
["14 - Lanaudière",50,null,55,0.1]
["15 - Laurentides",92,null,78,-0.15217391304347827]
["16 - Montérégie",111,null,146,0.31531531531531531]
["17 - Centre-du-Québec",10,null,20,1]
["Total",684,null,724,5.8479532163742687E-2]

{"sheet":"Dernier trimestre - Québec","index":2,"n_rows":57,"n_cols":5,"rows_kept":57,"cut":false,"hidden":false,"merged":[[3,7,3,8],[17,7,17,8],[30,7,30,8],[43,7,43,8],[0,0,0,9],[32,0,32,6],[43,0,43,6],[45,0,45,6],[3,0,3,6],[5,0,5,6],[17,0,17,6],[20,0,20,6],[30,0,30,6]]}
["Comparaison du dernier trimestre - Pour l'ensemble du Québec"]
[]
[]
["Volume des ventes par plage de prix"]
[]
["Nombre de ventes par plage de prix"]
["Filtre 2 derniers trimestres","Oui"]
[]
[null,"Trimestre"]
[null,"2024- Trimestre 1",null,"2025- Trimestre 1"]
["Plage de prix","Nbre","Variation % (▲ ou ▼)","Nbre","Variation % (▲ ou ▼)"]
[" Moins de 250 000$",9396,null,9586,2.0221370796083441E-2]
[" De 250 000$ à 500 000$",9216,null,11454,0.24283854166666666]
[" Plus de 500 000$",6240,null,9796,0.56987179487179485]
["Total",24852,null,30836,0.24078544986319009]
[]
[]
["Volume des transferts de propriété"]
["(Vente, cession d'un immeuble, déclaration de transmission, donation, etc.)"]
[]
["Nombre de transferts de propriété"]
[null,"Filtre 2 derniers trimestres","Oui"]
[]
[null,"Trimestre"]
[null,"2024- Trimestre 1",null,"2025- Trimestre 1"]
[null,"Nbre","Variation % (▲ ou ▼)","Nbre","Variation % (▲ ou ▼)"]
["Transferts de propriété",35958,null,42826,0.19100061182490682]
[]
[]
[]
["Volume des hypothèques"]
[]
["Nombre d'hypothèques"]
[null,"Filtre 2 derniers trimestres","Oui"]
[]
[null,"Trimestre"]
[null,"2024- Trimestre 1",null,"2025- Trimestre 1"]
[null,"Nbre","Variation % (▲ ou ▼)","Nbre","Variation % (▲ ou ▼)"]
["Hypothèques",38687,null,52060,0.34567167265489701]
[]
[]
[]
[]
["Indice de difficultés financières"]
["(Avis de vente impôt foncier, faillite, hyp. légale construction, préavis d'exercice, saisie)"]
["Nombre d'actes de difficultés financières"]
["Filtre 2 derniers trimestres","Oui"]
[]
[null,"Trimestre"]
[null,"2024- Trimestre 1",null,"2025- Trimestre 1"]
["Indice de difficultés \nfinancières","Nbre","Variation % (▲ ou ▼)","Nbre","Variation % (▲ ou ▼)"]
["Avis de vente impôt foncier",30,null,34,0.13333333333333333]
["Faillite",42,null,48,0.14285714285714285]
["Hypothèque construction",490,null,431,-0.12040816326530612]
["Préavis d'exercice",1507,null,1530,1.5262110152621102E-2]
["Saisie",81,null,73,-9.8765432098765427E-2]
["Total",2150,null,2116,-1.5813953488372091E-2]

{"sheet":"Dernier trimestre - Régions","index":3,"n_rows":113,"n_cols":5,"rows_kept":113,"cut":false,"hidden":false,"merged":[[0,0,0,9],[87,8,87,9],[31,0,31,6],[2,8,2,9],[30,8,30,9],[59,8,59,9],[89,0,89,3],[90,0,90,7],[2,0,2,6],[4,0,4,6],[30,0,30,6],[33,0,33,6],[59,0,59,5],[61,0,61,5],[87,0,87,7],[88,0,88,7]]}
["Comparaison du dernier trimestre - Régions administratives"]
[]
["Volume des ventes par plage de prix"]
[]
["Nombre de ventes par plage de prix et par région administrative"]
["Filtre 2 derniers trimestres","Oui"]
[]
[null,"Trimestre"]
[null,"2024- Trimestre 1",null,"2025- Trimestre 1"]
["Régions administratives","Nbre","Variation %  (▲ ou ▼)","Nbre","Variation %  (▲ ou ▼)"]
["01 - Bas-Saint-Laurent",712,null,869,0.2205056179775281]
["02 - Saguenay-Lac-Saint-Jean",1013,null,1132,0.11747285291214216]
["03 - Capitale-Nationale",2184,null,2648,0.21245421245421245]
["04 - Mauricie",1038,null,1166,0.1233140655105973]
["05 - Estrie",1296,null,1499,0.1566358024691358]
["06 - Montréal",3939,null,4748,0.20538207666920538]
["07 - Outaouais",1400,null,1673,0.19500000000000001]
["08 - Abitibi-Témiscamingue",434,null,533,0.22811059907834103]
["09 - Côte-Nord",260,null,313,0.20384615384615384]
["11 - Gaspésie-Îles-de-la-Madeleine",380,null,442,0.16315789473684211]
["12 - Chaudière-Appalaches",1613,null,2038,0.26348419094854308]
["13 - Laval",867,null,1057,0.21914648212226068]
["14 - Lanaudière",1791,null,2288,0.27749860413176997]
["15 - Laurentides",2702,null,3497,0.29422649888971131]
["16 - Montérégie",4449,null,5961,0.33985165205664192]
["17 - Centre-du-Québec",774,null,972,0.2558139534883721]
["Total",24852,null,30836,0.24078544986319009]
[]
[]
[]
["Volume des transferts de propriété"]
["(Vente, cession d'un immeuble, déclaration de transmission, donation, etc.)"]
[]
["Nombre de transferts de propriété par région administrative"]
["Filtre 2 derniers trimestres","Oui"]
[]
[null,"Trimestre"]
[null,"2024- Trimestre 1",null,"2025- Trimestre 1"]
["Régions administratives","Nbre","Variation % \n(▲ ou ▼)","Nbre","Variation % \n(▲ ou ▼)"]
["01 - Bas-Saint-Laurent",1110,null,1311,0.18108108108108109]
["02 - Saguenay-Lac-Saint-Jean",1532,null,1608,4.960835509138381E-2]
["03 - Capitale-Nationale",3126,null,3676,0.17594369801663468]
["04 - Mauricie",1526,null,1633,7.0117955439056356E-2]
["05 - Estrie",1741,null,1992,0.14417001723147616]
["06 - Montréal",5496,null,6495,0.18176855895196506]
["07 - Outaouais",2207,null,2500,0.13275940190303578]
["08 - Abitibi-Témiscamingue",728,null,865,0.18818681318681318]
["09 - Côte-Nord",415,null,481,0.15903614457831325]
["11 - Gaspésie-Îles-de-la-Madeleine",694,null,754,8.645533141210375E-2]
["12 - Chaudière-Appalaches",2284,null,2773,0.21409807355516638]
["13 - Laval",1344,null,1564,0.16369047619047619]
["14 - Lanaudière",2537,null,3124,0.23137564052029957]
["15 - Laurentides",3817,null,4710,0.23395336651820803]
["16 - Montérégie",6277,null,7997,0.27401624980086026]
["17 - Centre-du-Québec",1124,null,1343,0.19483985765124556]
["Total",35958,null,42826,0.19100061182490682]
[]
[]
[]
["Volume des hypothèques"]
[]
["Nombre d'hypothèques par région administrative"]
["Filtre 2 derniers trimestres","Oui"]
[]
[null,"Trimestre"]
[null,"2024- Trimestre 1",null,"2025- Trimestre 1"]
["Régions administratives","Nbre","Variation % \n(▲ ou ▼)","Nbre","Variation % \n(▲ ou ▼)"]
["01 - Bas-Saint-Laurent",723,null,1015,0.40387275242047027]
["02 - Saguenay-Lac-Saint-Jean",1319,null,1836,0.39196360879454134]
["03 - Capitale-Nationale",3403,null,4485,0.31795474581251837]
["04 - Mauricie",1461,null,1728,0.18275154004106775]
["05 - Estrie",1712,null,2245,0.31133177570093457]
["06 - Montréal",6549,null,8695,0.32768361581920902]
["07 - Outaouais",2278,null,3145,0.38059701492537312]
["08 - Abitibi-Témiscamingue",603,null,748,0.24046434494195687]
["09 - Côte-Nord",302,null,392,0.29801324503311261]
["11 - Gaspésie-Îles-de-la-Madeleine",320,null,405,0.265625]
["12 - Chaudière-Appalaches",1998,null,2655,0.32882882882882886]
["13 - Laval",1755,null,2440,0.3903133903133903]
["14 - Lanaudière",2794,null,3827,0.36972083035075159]
["15 - Laurentides",4310,null,5778,0.34060324825986077]
["16 - Montérégie",7968,null,11011,0.38190261044176704]
["17 - Centre-du-Québec",1192,null,1655,0.38842281879194629]
["Total",38687,null,52060,0.34567167265489701]
[]
[]
[]
["Indice de difficultés financières"]
["(Avis de vente impôt foncier, faillite, hyp. légale construction, préavis d'exercice, saisie)"]
[]
["Nombre d'actes de difficultés financières par région administrative"]
["Filtre 2 derniers trimestres","Oui"]
[]
[null,"Trimestre"]
[null,"2024- Trimestre 1",null,"2025- Trimestre 1"]
["Régions administratives","Nbre ","Variation % \n(▲ ou ▼)","Nbre ","Variation % \n(▲ ou ▼)"]
["01 - Bas-Saint-Laurent",43,null,42,-2.3255813953488372E-2]
["02 - Saguenay-Lac-Saint-Jean",75,null,87,0.16]
["03 - Capitale-Nationale",151,null,131,-0.13245033112582782]
["04 - Mauricie",78,null,62,-0.20512820512820512]
["05 - Estrie",81,null,86,6.1728395061728392E-2]
["06 - Montréal",443,null,412,-6.9977426636568849E-2]
["07 - Outaouais",100,null,136,0.36]
["08 - Abitibi-Témiscamingue",41,null,42,2.4390243902439025E-2]
["09 - Côte-Nord",23,null,18,-0.21739130434782608]
["11 - Gaspésie-Îles-de-la-Madeleine",44,null,34,-0.22727272727272727]
["12 - Chaudière-Appalaches",102,null,119,0.16666666666666666]
["13 - Laval",82,null,93,0.13414634146341464]
["14 - Lanaudière",159,null,157,-1.2578616352201259E-2]
["15 - Laurentides",271,null,241,-0.11070110701107011]
["16 - Montérégie",410,null,410,0]
["17 - Centre-du-Québec",47,null,46,-2.1276595744680851E-2]
["Total",2150,null,2116,-1.5813953488372091E-2]

{"sheet":"Années Cumul -  Québec","index":4,"n_rows":57,"n_cols":5,"rows_kept":57,"cut":false,"hidden":false,"merged":[[0,0,0,9],[45,0,45,6],[17,0,17,6],[20,0,20,6],[30,0,30,6],[32,0,32,6],[42,0,42,6],[3,0,3,6],[5,0,5,6],[3,7,3,9],[5,7,5,9],[17,7,17,9],[30,7,30,9],[42,7,42,9]]}
["Comparaison des années - Pour l'ensemble du Québec"]
[]
[]
["Volume des ventes par plage de prix"]
[]
["Nombre de ventes par plage de prix"]
["Rang année","(Plusieurs éléments)"]
[]
[null,"Année"]
[null,2024,null,2025]
["Plage de prix","Nbre","Variation %  (▲ ou ▼)","Nbre","Variation %  (▲ ou ▼)"]
[" Moins de 250 000$",9396,null,9586,2.0221370796083441E-2]
[" De 250 000$ à 500 000$",9216,null,11454,0.24283854166666666]
[" Plus de 500 000$",6240,null,9796,0.56987179487179485]
["Total",24852,null,30836,0.24078544986319009]
[]
[]
["Volume des transferts de propriété"]
["(Vente, cession d'un immeuble, déclaration de transmission, donation, etc.)"]
[]
["Nombre de transferts de propriété"]
[null,"Rang année","(Plusieurs éléments)"]
[]
[null,"Année"]
[null,2024,null,2025]
[null,"Nbre","Variation %  (▲ ou ▼)","Nbre","Variation %  (▲ ou ▼)"]
["Transferts de propriété",35958,null,42826,0.19100061182490682]
[]
[]
[]
["Volume des hypothèques"]
[]
["Nombre d'hypothèques"]
[null,"Rang année","(Plusieurs éléments)"]
[]
[null,"Année"]
[null,2024,null,2025]
[null,"Nbre","Variation %  (▲ ou ▼)","Nbre","Variation %  (▲ ou ▼)"]
["Hypothèques",38687,null,52060,0.34567167265489701]
[]
[]
[]
["Indice de difficultés financières"]
["(Avis de vente impôt foncier, faillite, hyp. légale construction, préavis d'exercice, saisie)"]
[]
["Nombre d'actes de difficultés financières"]
["Rang année","(Plusieurs éléments)"]
[]
[null,"Année"]
[null,2024,null,2025]
["Indice de difficultés \nfinancières","Nbre","Variation %  (▲ ou ▼)","Nbre","Variation %  (▲ ou ▼)"]
["Avis de vente impôt foncier",30,null,34,0.13333333333333333]
["Faillite",42,null,48,0.14285714285714285]
["Hypothèque construction",490,null,431,-0.12040816326530612]
["Préavis d'exercice",1507,null,1530,1.5262110152621102E-2]
["Saisie",81,null,73,-9.8765432098765427E-2]
["Total",2150,null,2116,-1.5813953488372091E-2]

{"sheet":"Années Cumul - Régions","index":5,"n_rows":114,"n_cols":5,"rows_kept":114,"cut":false,"hidden":false,"merged":[[0,0,0,9],[91,0,91,7],[3,0,3,6],[90,0,90,3],[60,0,60,5],[62,0,62,5],[3,7,3,9],[31,7,31,9],[60,7,60,9],[88,0,88,6],[88,7,88,9],[5,0,5,6],[31,0,31,6],[32,0,32,6],[34,0,34,6],[89,0,89,7]]}
["Comparaison des années - Régions administratives"]
[]
[]
["Volume des ventes par plage de prix"]
[]
["Nombre de ventes par plage de prix et par région administrative"]
["Rang année","(Plusieurs éléments)"]
[]
[null,"Année"]
[null,2024,null,2025]
["Régions administratives","Nbre","Variation %  (▲ ou ▼)","Nbre","Variation %  (▲ ou ▼)"]
["01 - Bas-Saint-Laurent",712,null,869,0.2205056179775281]
["02 - Saguenay-Lac-Saint-Jean",1013,null,1132,0.11747285291214216]
["03 - Capitale-Nationale",2184,null,2648,0.21245421245421245]
["04 - Mauricie",1038,null,1166,0.1233140655105973]
["05 - Estrie",1296,null,1499,0.1566358024691358]
["06 - Montréal",3939,null,4748,0.20538207666920538]
["07 - Outaouais",1400,null,1673,0.19500000000000001]
["08 - Abitibi-Témiscamingue",434,null,533,0.22811059907834103]
["09 - Côte-Nord",260,null,313,0.20384615384615384]
["11 - Gaspésie-Îles-de-la-Madeleine",380,null,442,0.16315789473684211]
["12 - Chaudière-Appalaches",1613,null,2038,0.26348419094854308]
["13 - Laval",867,null,1057,0.21914648212226068]
["14 - Lanaudière",1791,null,2288,0.27749860413176997]
["15 - Laurentides",2702,null,3497,0.29422649888971131]
["16 - Montérégie",4449,null,5961,0.33985165205664192]
["17 - Centre-du-Québec",774,null,972,0.2558139534883721]
["Total",24852,null,30836,0.24078544986319009]
[]
[]
[]
["Volume des transferts de propriété"]
["(Vente, cession d'un immeuble, déclaration de transmission, donation, etc.)"]
[]
["Nombre de transferts de propriété par région administrative"]
["Rang année","(Plusieurs éléments)"]
[]
[null,"Année"]
[null,2024,null,2025]
["Régions administratives","Nbre","Variation % (▲ ou ▼)","Nbre","Variation % (▲ ou ▼)"]
["01 - Bas-Saint-Laurent",1110,null,1311,0.18108108108108109]
["02 - Saguenay-Lac-Saint-Jean",1532,null,1608,4.960835509138381E-2]
["03 - Capitale-Nationale",3126,null,3676,0.17594369801663468]
["04 - Mauricie",1526,null,1633,7.0117955439056356E-2]
["05 - Estrie",1741,null,1992,0.14417001723147616]
["06 - Montréal",5496,null,6495,0.18176855895196506]
["07 - Outaouais",2207,null,2500,0.13275940190303578]
["08 - Abitibi-Témiscamingue",728,null,865,0.18818681318681318]
["09 - Côte-Nord",415,null,481,0.15903614457831325]
["11 - Gaspésie-Îles-de-la-Madeleine",694,null,754,8.645533141210375E-2]
["12 - Chaudière-Appalaches",2284,null,2773,0.21409807355516638]
["13 - Laval",1344,null,1564,0.16369047619047619]
["14 - Lanaudière",2537,null,3124,0.23137564052029957]
["15 - Laurentides",3817,null,4710,0.23395336651820803]
["16 - Montérégie",6277,null,7997,0.27401624980086026]
["17 - Centre-du-Québec",1124,null,1343,0.19483985765124556]
["Total",35958,null,42826,0.19100061182490682]
[]
[]
[]
["Volume des hypothèques"]
[]
["Nombre d'hypothèques par région administrative"]
["Rang année","(Plusieurs éléments)"]
[]
[null,"Année"]
[null,2024,null,2025]
["Régions administratives","Nbre","Variation % (▲ ou ▼)","Nbre","Variation % (▲ ou ▼)"]
["01 - Bas-Saint-Laurent",723,null,1015,0.40387275242047027]
["02 - Saguenay-Lac-Saint-Jean",1319,null,1836,0.39196360879454134]
["03 - Capitale-Nationale",3403,null,4485,0.31795474581251837]
["04 - Mauricie",1461,null,1728,0.18275154004106775]
["05 - Estrie",1712,null,2245,0.31133177570093457]
["06 - Montréal",6549,null,8695,0.32768361581920902]
["07 - Outaouais",2278,null,3145,0.38059701492537312]
["08 - Abitibi-Témiscamingue",603,null,748,0.24046434494195687]
["09 - Côte-Nord",302,null,392,0.29801324503311261]
["11 - Gaspésie-Îles-de-la-Madeleine",320,null,405,0.265625]
["12 - Chaudière-Appalaches",1998,null,2655,0.32882882882882886]
["13 - Laval",1755,null,2440,0.3903133903133903]
["14 - Lanaudière",2794,null,3827,0.36972083035075159]
["15 - Laurentides",4310,null,5778,0.34060324825986077]
["16 - Montérégie",7968,null,11011,0.38190261044176704]
["17 - Centre-du-Québec",1192,null,1655,0.38842281879194629]
["Total",38687,null,52060,0.34567167265489701]
[]
[]
[]
["Indice de difficultés financières"]
["(Avis de vente impôt foncier, faillite, hyp. légale construction, préavis d'exercice, saisie)"]
[]
["Nombre d'actes de difficultés financières par région administrative"]
["Rang année","(Plusieurs éléments)"]
[]
[null,"Année"]
[null,2024,null,2025]
["Régions administratives","Nbre","Variation % (▲ ou ▼)","Nbre","Variation % (▲ ou ▼)"]
["01 - Bas-Saint-Laurent",43,null,42,-2.3255813953488372E-2]
["02 - Saguenay-Lac-Saint-Jean",75,null,87,0.16]
["03 - Capitale-Nationale",151,null,131,-0.13245033112582782]
["04 - Mauricie",78,null,62,-0.20512820512820512]
["05 - Estrie",81,null,86,6.1728395061728392E-2]
["06 - Montréal",443,null,412,-6.9977426636568849E-2]
["07 - Outaouais",100,null,136,0.36]
["08 - Abitibi-Témiscamingue",41,null,42,2.4390243902439025E-2]
["09 - Côte-Nord",23,null,18,-0.21739130434782608]
["11 - Gaspésie-Îles-de-la-Madeleine",44,null,34,-0.22727272727272727]
["12 - Chaudière-Appalaches",102,null,119,0.16666666666666666]
["13 - Laval",82,null,93,0.13414634146341464]
["14 - Lanaudière",159,null,157,-1.2578616352201259E-2]
["15 - Laurentides",271,null,241,-0.11070110701107011]
["16 - Montérégie",410,null,410,0]
["17 - Centre-du-Québec",47,null,46,-2.1276595744680851E-2]
["Total",2150,null,2116,-1.5813953488372091E-2]

{"sheet":"Régions administratives","index":6,"n_rows":109,"n_cols":3,"rows_kept":109,"cut":false,"hidden":false,"merged":[]}
[]
[null,"Région","Circonscription foncière"]
[null,"01 - Bas-Saint-Laurent"]
[null,null,"Kamouraska (10)"]
[null,null,"Matane (06)"]
[null,null,"Matapédia (05)"]
[null,null,"Rimouski (07)"]
[null,null,"Témiscouata (09)"]
[]
[null,"02 - Saguenay-Lac-Saint-Jean"]
[null,null,"Chicoutimi (94)"]
[null,null,"Lac-Saint-Jean-Est (93)"]
[null,null,"Lac-Saint-Jean-Ouest (90)"]
[]
[null,"03 - Capitale-Nationale"]
[null,null,"Charlevoix 1 (11)"]
[null,null,"Charlevoix 2 (12)"]
[null,null,"Montmorency (17)"]
[null,null,"Portneuf (29)"]
[null,null,"Québec (20)"]
[]
[null,"04 - Mauricie"]
[null,null,"Champlain (32)"]
[null,null,"La Tuque (31)"]
[null,null,"Maskinongé (47)"]
[null,null,"Shawinigan (45)"]
[null,null,"Trois-Rivières (44)"]
[]
[null,"05 - Estrie"]
[null,null,"Coaticook (59)"]
[null,null,"Compton (25)"]
[null,null,"Frontenac (24)"]
[null,null,"Richmond (35)"]
[null,null,"Sherbrooke (36)"]
[null,null,"Stanstead (37)"]
[]
[null,"06 - Montréal"]
[null,null,"Montréal (65)"]
[]
[null,"07 - Outaouais"]
[null,null,"Gatineau (78)"]
[null,null,"Hull (79)"]
[null,null,"Papineau (75)"]
[null,null,"Pontiac (80)"]
[]
[null,"08 - Abitibi-Témiscamingue"]
[null,null,"Abitibi (84)"]
[null,null,"Rouyn-Noranda (85)"]
[null,null,"Témiscamingue (83)"]
[]
[null,"09 - Côte-Nord"]
[null,null,"Saguenay (97)"]
[null,null,"Sept-Îles (96)"]
[]
[null,"10 - Nord-du-Québec"]
[null,null,"Aucune circonscription foncière associée"]
[]
[null,"11 - Gaspésie-Îles-de-la-Madeleine"]
[null,null,"Bonaventure 1 (04)"]
[null,null,"Bonaventure 2 (18)"]
[null,null,"Gaspé (02)"]
[null,null,"Îles-de-la-Madeleine (01)"]
[null,null,"Sainte-Anne-des-Monts (03)"]
[]
[null,"12 - Chaudière-Appalaches"]
[null,null,"Beauce (23)"]
[null,null,"Bellechasse (15)"]
[null,null,"Dorchester (22)"]
[null,null,"Lévis (21)"]
[null,null,"L'Islet (13)"]
[null,null,"Lotbinière (28)"]
[null,null,"Montmagny (14)"]
[null,null,"Thetford (30)"]
[]
[null,"13 - Laval"]
[null,null,"Laval (64)"]
[]
[null,"14 - Lanaudière"]
[null,null,"Berthier (49)"]
[null,null,"Joliette (58)"]
[null,null,"L'Assomption (62)"]
[null,null,"Montcalm (61)"]
[]
[null,"15 - Laurentides"]
[null,null,"Argenteuil (74)"]
[null,null,"Deux-Montagnes (73)"]
[null,null,"Labelle (76)"]
[null,null,"Terrebonne (63)"]
[]
[null,"16 - Montérégie"]
[null,null,"Beauharnois (70)"]
[null,null,"Brome (38)"]
[null,null,"Chambly (56)"]
[null,null,"Châteauguay (69)"]
[null,null,"Huntingdon (68)"]
[null,null,"Laprairie (66)"]
[null,null,"Missisquoi (54)"]
[null,null,"Richelieu (50)"]
[null,null,"Rouville (52)"]
[null,null,"Saint-Hyacinthe (51)"]
[null,null,"Saint-Jean (55)"]
[null,null,"Shefford (39)"]
[null,null,"Vaudreuil (72)"]
[null,null,"Verchères (57)"]
[]
[null,"17 - Centre-du-Québec"]
[null,null,"Arthabaska (34)"]
[null,null,"Drummond (41)"]
[null,null,"Nicolet (Nicolet 2) (46)"]

{"sheet":"Codes","index":7,"n_rows":78,"n_cols":27,"rows_kept":78,"cut":false,"hidden":true,"merged":[[1,0,1,2],[10,16,10,17],[12,16,12,17],[8,16,8,17],[9,16,9,17],[11,16,11,17],[1,22,1,23],[1,25,1,26],[1,19,1,20],[1,16,1,17],[1,4,1,8],[1,11,1,14]]}
[]
["Immeubles dans les régions administratives",null,null,null,"Natures de difficulté financière",null,null,null,null,null,null,"Natures de transfert de propriété",null,null,null,null,"Plages de prix de vente",null,null,"Régions administratives",null,null,"CF",null,null,"CF - Région administrative"]
[null,null,null,null,null,null,"* Les dates de début d'effectivité 1800-01-01 ne s'affichent pas dans Excel",null,null,null,null,null,"* Les dates de début d'effectivité 1800-01-01 ne s'affichent pas dans Excel"]
[null,null,null,null,"Catégories","Natures","Début d'effectivité","Fin d'effectivité","Notes",null,null,"Natures","Début d'affectivité","Fin d'effectivité","Notes",null,"Code prix","Nom prix",null,"Id région","Régions",null,"ID_CIRCN_FONCR","NM_CIRCN_FONCR",null,"ID_CIRCN_FONCR","ID_REGN_ADMIN"]
[null,null,null,null,"025",null,null,null,null,null,null,"Acte de concession (035)","(vide)","(vide)",null,null,1," Moins de 250 000$",null,"08","Abitibi-Témiscamingue",null,"84","Abitibi",null,"01","11"]
[null,null,null,null,"Avis de vente impôt foncier","Préavis vente défaut de paiement impôt foncier (026)","(vide)","(vide)",null,null,null,"Apport à société - propriété (040)","(vide)","(vide)",null,null,2," De 250 000$ à 500 000$",null,"01","Bas-Saint-Laurent",null,"74","Argenteuil",null,"02","11"]
[null,null,null,null,"026",null,null,null,null,null,null,"Avis de bail excédant 40 ans (256)","2003-01-27","(vide)",null,null,3," Plus de 500 000$",null,"03","Capitale-Nationale",null,"34","Arthabaska",null,"03","11"]
[null,null,null,null,"Faillite","Avis de caveat - faillite (055)","(vide)","2011-07-23",null,null,null,"Avis de confirmation (058)","(vide)","(vide)",null,null,null,null,null,"17","Centre-du-Québec",null,"23","Beauce",null,"04","11"]
[null,null,null,null,null,"Avis de faillite (063)","(vide)","(vide)",null,null,null,"Avis de renonciation au droit exproprié (071)","(vide)","(vide)",null,null,"Pour assurer le tri correct:",null,null,"12","Chaudière-Appalaches",null,"70","Beauharnois",null,"05","01"]
[null,null,null,null,null,"Ordonnance de faillite (660)","2011-07-23","(vide)",null,null,null,"Avis de transfert de propriété (078)","(vide)","(vide)",null,null,"- Premier libellé précédé d'un espace",null,null,"09","Côte-Nord",null,"15","Bellechasse",null,"06","01"]
[null,null,null,null,"027",null,null,null,null,null,null,"Avis de transfert de propriété- Comm. Scolaires (079)","(vide)","(vide)",null,null,"  régulier (ASCII 32)",null,null,"05","Estrie",null,"49","Berthier",null,"07","01"]
[null,null,null,null,"Hypothèque construction","Hypothèque légale (construction) (249)","(vide)","(vide)",null,null,null,"Avis faisant état d'un transfert de propriété (682)","2017-12-01","(vide)",null,null,"- Deux autres précédés d'un espace insécable",null,null,"11","Gaspésie-Îles-de-la-Madeleine",null,"04","Bonaventure 1",null,"09","01"]
[null,null,null,null,"028",null,null,null,null,null,null,"Avis ministériel de transfert - propriété (683)","2017-12-01","(vide)",null,null,"  insécable (ASCII 160)",null,null,"14","Lanaudière",null,"18","Bonaventure 2",null,"10","01"]
[null,null,null,null,"Préavis d'exercice","Préavis d'exercice - Prise de possession (634)","2006-06-30","(vide)",null,null,null,"Avis municipal de transfert - propriété (689)","2019-07-02","(vide)",null,null,null,null,null,"15","Laurentides",null,"38","Brome",null,"11","03"]
[null,null,null,null,null,"Préavis d'exercice - Prise en paiement (635)","2006-06-30","(vide)",null,null,null,"Bail à rente (087)","(vide)","(vide)",null,null,null,null,null,"13","Laval",null,"56","Chambly",null,"12","03"]
[null,null,null,null,null,"Préavis d'exercice - Vente par le créancier (636)","2006-06-30","(vide)",null,null,null,"Bail immobilier excédant 40 ans (015)","(vide)","(vide)",null,null,null,null,null,"04","Mauricie",null,"32","Champlain",null,"13","12"]
[null,null,null,null,null,"Préavis d'exercice - Vente sous contrôle justice (637)","2006-06-30","(vide)",null,null,null,"Billet de location (091)","(vide)","2010-02-27",null,null,null,null,null,"16","Montérégie",null,"11","Charlevoix 1",null,"14","12"]
[null,null,null,null,null,"Préavis d'exercice d'une sûreté prioritaire (630)","2005-12-01","(vide)",null,null,null,"Cession des droits de l'emphytéote (104)","(vide)","(vide)",null,null,null,null,null,"06","Montréal",null,"12","Charlevoix 2",null,"15","12"]
[null,null,null,null,"029",null,null,null,null,null,null,"Cession d'un immeuble (100)","(vide)","(vide)",null,null,null,null,null,"10","Nord-du-Québec",null,"69","Châteauguay",null,"17","03"]
[null,null,null,null,"Saisie","Saisie - procès-verbal (225)","(vide)","(vide)",null,null,null,"Correction - cession (646)","2009-07-18","(vide)",null,null,null,null,null,"07","Outaouais",null,"94","Chicoutimi",null,"18","11"]
[null,null,null,null,null,null,null,null,null,null,null,"Dation en paiement volontaire (117)","(vide)","(vide)",null,null,null,null,null,"02","Saguenay-Lac-Saint-Jean",null,"59","Coaticook",null,"20","03"]
[null,null,null,null,null,null,null,null,null,null,null,"Décision - transfert de propriété à l'exproprié (701)","2024-06-20","(vide)",null,null,null,null,null,null,null,null,"25","Compton",null,"21","12"]
[null,null,null,null,null,null,null,null,null,null,null,"Déclaration (art. 58 Loi Soc. habitation Québec) (259)","2003-01-27","(vide)",null,null,null,null,null,null,null,null,"73","Deux-Montagnes",null,"22","12"]
[null,null,null,null,null,null,null,null,null,null,null,"Déclaration de succession - corporation éteinte (124)","(vide)","2016-11-25",null,null,null,null,null,null,null,null,"22","Dorchester",null,"23","12"]
[null,null,null,null,null,null,null,null,null,null,null,"Déclaration de transfert de propriété (250)","(vide)","(vide)",null,null,null,null,null,null,null,null,"41","Drummond",null,"24","05"]
[null,null,null,null,null,null,null,null,null,null,null,"Déclaration de transmission (125)","(vide)","(vide)",null,null,null,null,null,null,null,null,"24","Frontenac",null,"25","05"]
[null,null,null,null,null,null,null,null,null,null,null,"Déclaration Société québécoise des infrastructures (664)","2013-12-06","(vide)",null,null,null,null,null,null,null,null,"02","Gaspé",null,"28","12"]
[null,null,null,null,null,null,null,null,null,null,null,"Délaissement volontaire - Prise en paiement (627)","2005-05-30","(vide)",null,null,null,null,null,null,null,null,"78","Gatineau",null,"29","03"]
[null,null,null,null,null,null,null,null,null,null,null,"Donation (005)","(vide)","(vide)",null,null,null,null,null,null,null,null,"79","Hull",null,"30","12"]
[null,null,null,null,null,null,null,null,null,null,null,"Échange (006)","(vide)","(vide)",null,null,null,null,null,null,null,null,"68","Huntingdon",null,"31","04"]
[null,null,null,null,null,null,null,null,null,null,null,"Emphytéose (151)","(vide)","(vide)",null,null,null,null,null,null,null,null,"01","Îles-de-la-Madeleine",null,"32","04"]
[null,null,null,null,null,null,null,null,null,null,null,"Fiducie (158)","(vide)","(vide)",null,null,null,null,null,null,null,null,"58","Joliette",null,"34","17"]
[null,null,null,null,null,null,null,null,null,null,null,"Jugement - transfert de propriété (170)","(vide)","(vide)",null,null,null,null,null,null,null,null,"10","Kamouraska",null,"35","05"]
[null,null,null,null,null,null,null,null,null,null,null,"Jugement en délaissement - Prise en paiement (628)","2005-05-30","(vide)",null,null,null,null,null,null,null,null,"31","La Tuque",null,"36","05"]
[null,null,null,null,null,null,null,null,null,null,null,"Ordonnance de confiscation (187)","(vide)","(vide)",null,null,null,null,null,null,null,null,"76","Labelle",null,"37","05"]
[null,null,null,null,null,null,null,null,null,null,null,"Ordonnance de déplacement d'une construction (188)","(vide)","2010-12-04",null,null,null,null,null,null,null,null,"93","Lac-Saint-Jean-Est",null,"38","16"]
[null,null,null,null,null,null,null,null,null,null,null,"Ordonnance homologuée - transfert de propriété (191)","(vide)","(vide)",null,null,null,null,null,null,null,null,"90","Lac-Saint-Jean-Ouest",null,"39","16"]
[null,null,null,null,null,null,null,null,null,null,null,"Ouverture de substitution (192)","(vide)","(vide)",null,null,null,null,null,null,null,null,"66","Laprairie",null,"41","17"]
[null,null,null,null,null,null,null,null,null,null,null,"Promesse de vente (200)","(vide)","2010-02-27",null,null,null,null,null,null,null,null,"62","L'Assomption",null,"44","04"]
[null,null,null,null,null,null,null,null,null,null,null,"Règlement - Charte de la Ville de Montréal (674)","2015-01-15","(vide)",null,null,null,null,null,null,null,null,"64","Laval",null,"45","04"]
[null,null,null,null,null,null,null,null,null,null,null,"Renonciation à la substitution (211)","(vide)","(vide)",null,null,null,null,null,null,null,null,"21","Lévis",null,"46","17"]
[null,null,null,null,null,null,null,null,null,null,null,"Retrait par le propriétaire (219)","(vide)","(vide)",null,null,null,null,null,null,null,null,"13","L'Islet",null,"47","04"]
[null,null,null,null,null,null,null,null,null,null,null,"Retrait par le syndicat des copropriétaires (220)","(vide)","(vide)",null,null,null,null,null,null,null,null,"28","Lotbinière",null,"49","14"]
[null,null,null,null,null,null,null,null,null,null,null,"Retrait par l'indivisaire (218)","(vide)","(vide)",null,null,null,null,null,null,null,null,"47","Maskinongé",null,"50","16"]
[null,null,null,null,null,null,null,null,null,null,null,"Retrait par un tiers (221)","(vide)","(vide)",null,null,null,null,null,null,null,null,"06","Matane",null,"51","16"]
[null,null,null,null,null,null,null,null,null,null,null,"Rétrocession (222)","(vide)","(vide)",null,null,null,null,null,null,null,null,"05","Matapédia",null,"52","16"]
[null,null,null,null,null,null,null,null,null,null,null,"Substitution (231)","(vide)","(vide)",null,null,null,null,null,null,null,null,"54","Missisquoi",null,"54","16"]
[null,null,null,null,null,null,null,null,null,null,null,"Transfert de propriété - terres domaine de l'État (232)","2016-11-26","(vide)",null,null,null,null,null,null,null,null,"61","Montcalm",null,"55","16"]
[null,null,null,null,null,null,null,null,null,null,null,"Transfert de propriété - terres du domaine public (234)","(vide)","2016-11-25",null,null,null,null,null,null,null,null,"14","Montmagny",null,"56","16"]
[null,null,null,null,null,null,null,null,null,null,null,"Vente (001)","(vide)","(vide)",null,null,null,null,null,null,null,null,"17","Montmorency",null,"57","16"]
[null,null,null,null,null,null,null,null,null,null,null,"Vente par le créancier (240)","(vide)","(vide)",null,null,null,null,null,null,null,null,"65","Montréal",null,"58","14"]
[null,null,null,null,null,null,null,null,null,null,null,"Vente par le shérif (241)","(vide)","(vide)",null,null,null,null,null,null,null,null,"46","Nicolet (Nicolet 2)",null,"59","05"]
[null,null,null,null,null,null,null,null,null,null,null,"Vente pour défaut de paiement de l'impôt foncier (690)","2020-09-05","(vide)",null,null,null,null,null,null,null,null,"75","Papineau",null,"61","14"]
[null,null,null,null,null,null,null,null,null,null,null,"Vente sous contrôle de justice (242)","(vide)","(vide)",null,null,null,null,null,null,null,null,"80","Pontiac",null,"62","14"]
[null,null,null,null,null,null,null,null,null,null,null,"Vente suite au défaut de paiement - impôt foncier (243)","(vide)","2020-09-04",null,null,null,null,null,null,null,null,"29","Portneuf",null,"63","15"]
[null,null,null,null,null,null,null,null,null,null,null,null,null,null,null,null,null,null,null,null,null,null,"20","Québec",null,"64","13"]
[null,null,null,null,null,null,null,null,null,null,null,null,null,null,null,null,null,null,null,null,null,null,"50","Richelieu",null,"65","06"]
[null,null,null,null,null,null,null,null,null,null,null,null,null,null,null,null,null,null,null,null,null,null,"35","Richmond",null,"66","16"]
[null,null,null,null,null,null,null,null,null,null,null,null,null,null,null,null,null,null,null,null,null,null,"07","Rimouski",null,"68","16"]
[null,null,null,null,null,null,null,null,null,null,null,null,null,null,null,null,null,null,null,null,null,null,"52","Rouville",null,"69","16"]
[null,null,null,null,null,null,null,null,null,null,null,null,null,null,null,null,null,null,null,null,null,null,"85","Rouyn-Noranda",null,"70","16"]
[null,null,null,null,null,null,null,null,null,null,null,null,null,null,null,null,null,null,null,null,null,null,"97","Saguenay",null,"72","16"]
[null,null,null,null,null,null,null,null,null,null,null,null,null,null,null,null,null,null,null,null,null,null,"03","Sainte-Anne-des-Monts",null,"73","15"]
[null,null,null,null,null,null,null,null,null,null,null,null,null,null,null,null,null,null,null,null,null,null,"51","Saint-Hyacinthe",null,"74","15"]
[null,null,null,null,null,null,null,null,null,null,null,null,null,null,null,null,null,null,null,null,null,null,"55","Saint-Jean",null,"75","07"]
[null,null,null,null,null,null,null,null,null,null,null,null,null,null,null,null,null,null,null,null,null,null,"96","Sept-Îles",null,"76","15"]
[null,null,null,null,null,null,null,null,null,null,null,null,null,null,null,null,null,null,null,null,null,null,"45","Shawinigan",null,"78","07"]
[null,null,null,null,null,null,null,null,null,null,null,null,null,null,null,null,null,null,null,null,null,null,"39","Shefford",null,"79","07"]
[null,null,null,null,null,null,null,null,null,null,null,null,null,null,null,null,null,null,null,null,null,null,"36","Sherbrooke",null,"80","07"]
[null,null,null,null,null,null,null,null,null,null,null,null,null,null,null,null,null,null,null,null,null,null,"37","Stanstead",null,"83","08"]
[null,null,null,null,null,null,null,null,null,null,null,null,null,null,null,null,null,null,null,null,null,null,"83","Témiscamingue",null,"84","08"]
[null,null,null,null,null,null,null,null,null,null,null,null,null,null,null,null,null,null,null,null,null,null,"09","Témiscouata",null,"85","08"]
[null,null,null,null,null,null,null,null,null,null,null,null,null,null,null,null,null,null,null,null,null,null,"63","Terrebonne",null,"90","02"]
[null,null,null,null,null,null,null,null,null,null,null,null,null,null,null,null,null,null,null,null,null,null,"30","Thetford",null,"93","02"]
[null,null,null,null,null,null,null,null,null,null,null,null,null,null,null,null,null,null,null,null,null,null,"44","Trois-Rivières",null,"94","02"]
[null,null,null,null,null,null,null,null,null,null,null,null,null,null,null,null,null,null,null,null,null,null,"72","Vaudreuil",null,"96","09"]
[null,null,null,null,null,null,null,null,null,null,null,null,null,null,null,null,null,null,null,null,null,null,"57","Verchères",null,"97","09"]
[null,null,null,null,null,null,null,null,null,null,null,null,null,null,null,null,null,null,null,null,null,null,null,null,null,null,10]

{"sheet":"Mois","index":8,"n_rows":21,"n_cols":22,"rows_kept":21,"cut":false,"hidden":true,"merged":[[16,1,16,3],[16,6,16,8],[16,11,16,13],[16,16,16,18],[20,1,20,3],[20,6,20,8],[20,11,20,13],[20,16,20,18],[19,1,19,3],[19,6,19,8],[19,11,19,13],[19,16,19,18],[17,1,17,3],[17,6,17,8],[17,11,17,13],[17,16,17,18],[4,1,4,3],[4,6,4,8],[4,11,4,13],[4,16,4,18],[10,1,10,3],[10,6,10,8],[10,11,10,13],[10,16,10,18],[7,1,7,3],[7,6,7,8],[7,11,7,13],[7,16,7,18],[22,6,22,8],[22,11,22,13],[22,1,22,3],[22,16,22,18],[0,0,0,3],[0,5,0,8],[0,15,0,18],[0,10,0,13],[13,1,13,3],[13,6,13,8],[13,11,13,13],[13,16,13,18],[5,16,5,17],[5,11,5,12],[5,6,5,7],[5,1,5,2]]}
["Difficultés financières",null,null,null,null,"Hypothèques",null,null,null,null,"Prix de vente - Réquisition",null,null,null,null,"Transferts de propriété, \nincluant Vente"]
["Dernier mois","Copie mois",null,null,null,"Dernier mois","Copie mois",null,null,null,"Dernier mois","Copie mois",null,null,null,"Dernier mois","Copie mois"]
["2025-03-01","2025-03-01",null,null,null,"2025-03-01","2025-03-01",null,null,null,"2025-03-01","2025-03-01",null,null,null,"2025-03-01","2025-03-01"]
[null,null,null,null,null,null,null,null,null,null,null,null,null,null,null,null,null,null,null,null,"No mois","Nom mois"]
[null,"Libellé dernier mois",null,null,null,null,"Libellé dernier mois",null,null,null,null,"Libellé dernier mois",null,null,null,null,"Libellé dernier mois",null,null,null,1,"janvier"]
[null,{"$f":"CONCATENATE(\"(\",TEXT(DERN_MOIS_DIFF_FIN,\"mmmm aaaa\"),\")\")","v":"(mars 2025)"},null,null,null,null,{"$f":"CONCATENATE(\"(\",TEXT(DERN_MOIS_HYPOTH,\"mmmm aaaa\"),\")\")","v":"(mars 2025)"},null,null,null,null,{"$f":"CONCATENATE(\"(\",TEXT(DERN_MOIS_PRIX_REQST,\"mmmm aaaa\"),\")\")","v":"(mars 2025)"},null,null,null,null,{"$f":"CONCATENATE(\"(\",TEXT(DERN_MOIS_TRANSF_PROP,\"mmmm aaaa\"),\")\")","v":"(mars 2025)"},null,null,null,2,"février"]
[null,null,null,null,null,null,null,null,null,null,null,null,null,null,null,null,null,null,null,null,3,"mars"]
[null,"Libellé dernière année",null,null,null,null,"Libellé dernière année",null,null,null,null,"Libellé dernière année",null,null,null,null,"Libellé dernière année",null,null,null,4,"avril"]
[null,{"$f":"CONCATENATE(\"(année \",TEXT(DERN_MOIS_DIFF_FIN,\"aaaa\"),\")\")","v":"(année 2025)"},null,null,null,null,{"$f":"CONCATENATE(\"(année \",TEXT(DERN_MOIS_HYPOTH,\"aaaa\"),\")\")","v":"(année 2025)"},null,null,null,null,{"$f":"CONCATENATE(\"(année \",TEXT(DERN_MOIS_PRIX_REQST,\"aaaa\"),\")\")","v":"(année 2025)"},null,null,null,null,{"$f":"CONCATENATE(\"(année \",TEXT(DERN_MOIS_TRANSF_PROP,\"aaaa\"),\")\")","v":"(année 2025)"},null,null,null,5,"mai"]
[null,null,null,null,null,null,null,null,null,null,null,null,null,null,null,null,null,null,null,null,6,"juin"]
[null,"Numéro du mois",null,null,null,null,"Numéro du mois",null,null,null,null,"Numéro du mois",null,null,null,null,"Numéro du mois",null,null,null,7,"juillet"]
[null,{"$f":"MONTH(DERN_MOIS_DIFF_FIN)","v":3},null,null,null,null,{"$f":"MONTH(DERN_MOIS_HYPOTH)","v":3},null,null,null,null,{"$f":"MONTH(DERN_MOIS_PRIX_REQST)","v":3},null,null,null,null,{"$f":"MONTH(DERN_MOIS_TRANSF_PROP)","v":3},null,null,null,8,"août"]
[null,null,null,null,null,null,null,null,null,null,null,null,null,null,null,null,null,null,null,null,9,"septembre"]
[null,"Numéro du trimestre",null,null,null,null,"Numéro du trimestre",null,null,null,null,"Numéro du trimestre",null,null,null,null,"Numéro du trimestre",null,null,null,10,"octobre"]
[null,{"$f":"INT((B$12 - 1) / 3) + 1","v":1},null,null,null,null,{"$f":"INT((G$12 - 1) / 3) + 1","v":1},null,null,null,null,{"$f":"INT((L$12 - 1) / 3) + 1","v":1},null,null,null,null,{"$f":"INT((Q$12 - 1) / 3) + 1","v":1},null,null,null,11,"novembre"]
[null,null,null,null,null,null,null,null,null,null,null,null,null,null,null,null,null,null,null,null,12,"décembre"]
[null,"Mois inclus dans année",null,null,null,null,"Mois inclus dans année",null,null,null,null,"Mois inclus dans année",null,null,null,null,"Mois inclus dans année"]
[null,{"$f":"IF($B$12=12,\"\",IF($B$12=1, \"Janvier seulement\", CONCATENATE(\"Janvier à \",VLOOKUP($B$12,T_MOIS[],2))))","v":"Janvier à mars"},null,null,null,null,{"$f":"IF($G$12=12,\"\",IF($G$12=1, \"Janvier seulement\", CONCATENATE(\"Janvier à \",VLOOKUP($G$12,T_MOIS[],2))))","v":"Janvier à mars"},null,null,null,null,{"$f":"IF($L$12=12,\"\",IF($L$12=1, \"Janvier seulement\", CONCATENATE(\"Janvier à \",VLOOKUP($L$12,T_MOIS[],2))))","v":"Janvier à mars"},null,null,null,null,{"$f":"IF($Q$12=12,\"\",IF($Q$12=1, \"Janvier seulement\", CONCATENATE(\"Janvier à \",VLOOKUP($Q$12,T_MOIS[],2))))","v":"Janvier à mars"}]
[]
[null,"Trimestre incomplet?",null,null,null,null,"Trimestre incomplet?",null,null,null,null,"Trimestre incomplet?",null,null,null,null,"Trimestre incomplet?"]
[null,{"$f":"IF(MOD($B$12, 3)=0, \"\", \"*** INCOMPLET ***\")","v":""},null,null,null,null,{"$f":"IF(MOD($G$12, 3)=0, \"\", \"*** INCOMPLET ***\")","v":""},null,null,null,null,{"$f":"IF(MOD($L$12, 3)=0, \"\", \"*** INCOMPLET ***\")","v":""},null,null,null,null,{"$f":"IF(MOD($Q$12, 3)=0, \"\", \"*** INCOMPLET ***\")","v":""}]